Cogmind - Beta 13 @@@ ROGUE MODE // 2024.04.21 @ 14:22:51 Player: YBOUZL Result: Destroyed by L-31 Rogue with Katana Performance ------------- Evolutions (1) 500 Regions Visited (4) 800 Robots Destroyed (20) 100 Value Destroyed (515) 515 Prototype IDs (4) 80 Alien Tech Used (0) 0 Bonus (0) 0 TOTAL SCORE: 1995 Bonus ------- None Cogmind --------- Core Integrity 0/400 Matter 247/300 Energy 36/100 System Corruption 0% Temperature Hot (240) Movement Core (400) Ox7 Location -9/Storage Parts ------- > --- POWER (1) -------- (None) > --- PROPULSION (4) --- (None) > --- UTILITY (2) ------ Large Storage Unit > --- WEAPON (2) ------- Light Assault Rifle Heavy Assault Rifle > --- INVENTORY (15) --- Light Ion Engine Light Ion Engine Large Storage Unit Large Matter Pod (0) Large Matter Pod (0) Experimental Sensor Array Light Assault Rifle Mining Claw Peak State ------------ > --- POWER ------------ Ion Engine > --- PROPULSION ------- Aluminum Leg Aluminum Leg Improved Aluminum Leg > --- UTILITY ---------- Large Storage Unit Experimental Sensor Array > --- WEAPON ----------- Medium Laser Beam Rifle > --- INVENTORY -------- Ion Engine Light Ion Engine Light Ion Engine Large Storage Unit Medium Matter Pod Large Matter Pod Large Matter Pod Medium Laser Light Assault Rifle Light Assault Rifle Light Assault Rifle Heavy Assault Rifle Mining Claw [Rating: 19] Favorites ----------- Power Ion Engine Engine Ion Engine Propulsion Aluminum Leg Leg Aluminum Leg Utility Large Storage Unit Device Experimental Sensor Array Storage Large Storage Unit Weapon Medium Laser Energy Gun Medium Laser Ballistic Gun Light Assault Rifle Launcher Grenade Launcher Slashing Weapon Mining Claw Build | -11 -10 -10 -9 -9 ------- Run | Yrd Mat Min Mat Sto Slots Evolved 2 | . . . 2 . Power . | . . . . . Propulsion 2 | . . . 2 . Utility . | . . . . . Weapon . | . . . . . Parts Attached 33 | 6 9 2 6 10 Power 4 | 1 . . 1 2 Engine 4 | 1 . . 1 2 Core . | . . . . . Reactor . | . . . . . Propulsion 4 | 2 . . 2 . Treads . | . . . . . Leg 4 | 2 . . 2 . Wheel . | . . . . . Hover . | . . . . . Flight . | . . . . . Utility 6 | 1 2 1 . 2 Device 1 | . . 1 . . Storage 5 | 1 2 . . 2 Processor . | . . . . . Hackware . | . . . . . Protection . | . . . . . Artifact . | . . . . . Weapon 19 | 2 7 1 3 6 Energy Gun 6 | . 2 . 1 3 Energy Cannon . | . . . . . Ballistic Gun 8 | 2 1 1 1 3 Ballistic Cannon . | . . . . . Launcher 3 | . 2 . 1 . Special Weapon . | . . . . . Impact Weapon . | . . . . . Slashing Weapon 2 | . 2 . . . Piercing Weapon . | . . . . . Special Melee Weapon . | . . . . . Unidentified Prototypes 2 | . . 1 1 . Parts Lost 14 | . . . 4 10 Power 3 | . . . 1 2 Propulsion 4 | . . . 1 3 Utility 1 | . . . . 1 Weapon 6 | . . . 2 4 Highest Loss Streak 9 | . . . 1 9 To Critical Strikes . | . . . . . Average Slot Usage (%) 90 | . 97 100 74 80 Engine 11 | . 14 14 5 10 Leg 27 | . 28 28 25 26 Device 3 | . . 2 11 5 Storage 21 | . 27 25 11 16 Energy Gun 11 | . 7 14 13 17 Ballistic Gun 11 | . 13 14 7 4 Launcher 1 | . 4 . 1 . Naked Turns . | . . . . . Heaviest Build 50 | 12 49 50 31 31 Greatest Support 33 | 20 20 20 33 33 Greatest Overweight (x) 7 | . 2 2 7 . Average Overweight (x) 1 | . 1 1 . . Largest Inventory Capacity 15 | 8 15 15 15 15 Average Capacity 14 | 6 14 15 15 15 Most Carried 15 | 5 10 15 15 14 Average Carried 10 | 2 6 12 13 12 Final Capacity 15 | 8 15 15 15 15 Final Carried 14 | 2 10 14 13 8 Class Distribution -------------------- 100% | Mutant Dominant Class ---------------- Mutant | -10/Materials Mutant | -10/Mines Mutant | -9/Materials Mutant | -9/Storage Resources | -11 -10 -10 -9 -9 ----------- Run | Yrd Mat Min Mat Sto Matter Collected 530 | 260 . 126 144 . Remotely . | . . . . . Salvage Created 583 | . 15 . 287 281 Parts 39 | . 3 . 24 12 Haulers Intercepted . | . . . . . Recyclers Shooed . | . . . . . Parts Field Recycled . | . . . . . Retrieved Matter . | . . . . . Parts Self-Destructed . | . . . . . Prevented . | . . . . . Kills | -11 -10 -10 -9 -9 ------- Run | Yrd Mat Min Mat Sto Combat Hostiles Destroyed 17 | . 3 . 9 5 Guns 10 | . . . 5 5 AOE 7 | . 3 . 4 . Classes Destroyed 5 | . 1 . 4 . Builder 1 | . . . 1 . Watcher 2 | . . . 1 1 Swarmer 7 | . 3 . 4 . Grunt 5 | . . . 3 2 Sentry 5 | . . . 2 3 Best Kill Streak 4 | . 3 . 4 3 Combat Bots Only 4 | . 3 . 4 3 Max Kills in Single Turn 4 | . 2 . 4 1 Gunslinging . | . . . . . Exploded 3 | . 2 . 3 . Melee . | . . . . . Uniques/NPCs Destroyed . | . . . . . Combat | -11 -10 -10 -9 -9 -------- Run | Yrd Mat Min Mat Sto Hostile Shots Fired 165 | . 25 2 57 81 Missed 52 | . 7 1 23 21 Damage Taken 1624 | . 134 18 424 1048 Core 434 | . 13 . 84 337 Absorbed by Shields . | . . . . . Regen/Repaired (Parts) 11 | . 11 . . . Core Remaining (%) 97 | 100 . 94 . . Volleys Fired 78 | . 10 1 21 46 Largest 2 | . 2 2 2 2 Hottest 106 | . 70 70 106 106 Shots Fired 140 | . 13 2 40 85 Gun 136 | . 11 2 38 85 Cannon . | . . . . . Launcher 4 | . 2 . 2 . Special . | . . . . . Kinetic 51 | . 5 1 12 33 Thermal 85 | . 6 1 26 52 Explosive 4 | . 2 . 2 . Electromagnetic . | . . . . . Robot Hit Streak 9 | . 1 2 9 9 Robot Miss Streak 3 | . 3 . 3 2 Penetration Max . | . . . . . Secondary Targets 1 | . . . 1 . Max Gunslinging Chain 1 | . . . 1 . Shots Hit Robots 86 | . 2 2 29 53 Core Hits 35 | . 4 . 17 14 Critical Kills . | . . . . . Critical Parts Destroyed 1 | . . . . 1 Critical Strikes 5 | . . . 2 3 Burn 4 | . . . 2 2 Destroy 1 | . . . . 1 Melee Attacks . | . . . . . Impact . | . . . . . Slashing . | . . . . . Piercing . | . . . . . Sneak Attacks . | . . . . . Combat Hostiles . | . . . . . Follow-up Attacks . | . . . . . Damage Inflicted 1362 | . 154 20 599 589 Guns 1017 | . 23 20 385 589 Cannons . | . . . . . Explosions 345 | . 131 . 214 . Melee . | . . . . . Ramming . | . . . . . Kinetic 283 | . 10 7 122 144 Thermal 734 | . 13 13 263 445 Explosive 345 | . 131 . 214 . Electromagnetic . | . . . . . Impact . | . . . . . Slashing . | . . . . . Piercing . | . . . . . Highest Corruption . | . . . . . Average Corruption . | . . . . . Corruption Purged . | . . . . . Corruption Blocked . | . . . . . Overload Shots . | . . . . . Overflow Damage . | . . . . . Projectiles . | . . . . . Explosions . | . . . . . Melee . | . . . . . Knockbacks . | . . . . . Impact . | . . . . . Kinetic . | . . . . . Secondary . | . . . . . Self-Inflicted Damage . | . . . . . Shots . | . . . . . Rammed . | . . . . . Targets Rammed 1 | . 1 . . . Kicked 1 | . 1 . . . Crushed . | . . . . . Highest Temperature 353 | . 30 30 136 353 Average Temperature 134 | . 14 18 36 185 Received Heat Transfer 495 | . . . 198 297 Effects 6 | . . . . 6 Energy Bleed 1 | . . . . 1 Interference 4 | . . . . 4 Damage (minor) 1 | . . . . 1 Siege Activations . | . . . . . Robots Corrupted . | . . . . . Combat Hostiles . | . . . . . Parts Fried . | . . . . . Impact Corruptions . | . . . . . Robots Melted . | . . . . . Combat Hostiles . | . . . . . Parts Melted 3 | . . . 2 1 Heat Transferred 2368 | . 37 37 888 1406 Parts Sabotaged . | . . . . . Parts Stolen . | . . . . . Parts Stripped . | . . . . . Power Chain Reactions . | . . . . . Alert | -11 -10 -10 -9 -9 ------- Run | Yrd Mat Min Mat Sto Peak Influence 233 | . 101 . 233 230 Initial 98 | . . . . 98 Average 58 | . 54 . 90 142 Maximum Alert Level 1 | . . . 1 1 Low Security (%) 93 | 100 100 100 80 86 Level 1 6 | . . . 19 13 Level 2 . | . . . . . Level 3 . | . . . . . Level 4 . | . . . . . Level 5 . | . . . . . High Security . | . . . . . Max Security . | . . . . . Squads Dispatched 2 | . 1 . . 1 Investigation . | . . . . . Extermination . | . . . . . Reinforcement 2 | . 1 . . 1 Assault . | . . . . . Garrison . | . . . . . Intercept . | . . . . . Searches Triggered . | . . . . . Construction Impeded . | . . . . . Haulers Reinforced . | . . . . . Active Scanning Responses . | . . . . . Cargo Convoy Interrupts . | . . . . . Stealth | -11 -10 -10 -9 -9 --------- Run | Yrd Mat Min Mat Sto Distress Signals 1 | . . . . 1 Communications Jammed . | . . . . . Distress Signals . | . . . . . Times Spotted 28 | . 6 2 12 8 Peak Tracking Total 9 | . 3 2 4 9 Tactical Retreats . | . . . . . Traps | -11 -10 -10 -9 -9 ------- Run | Yrd Mat Min Mat Sto Traps Triggered 1 | . 1 . . . Indirectly . | . . . . . Trap Hack Attempts . | . . . . . Triggered . | . . . . . Disarmed . | . . . . . Reprogrammed . | . . . . . Reused . | . . . . . Traps Extracted . | . . . . . Installed . | . . . . . Triggered . | . . . . . Machines | -11 -10 -10 -9 -9 ---------- Run | Yrd Mat Min Mat Sto Machines Disabled . | . . . . . Max in Single Turn . | . . . . . Machines Repaired . | . . . . . Machines Dismantled . | . . . . . Machines Sabotaged . | . . . . . Overloaded Fab Kills . | . . . . . Hacking | -11 -10 -10 -9 -9 --------- Run | Yrd Mat Min Mat Sto Machines Accessed 4 | . 1 1 2 . Terminals 2 | . . 1 1 . Fabricators . | . . . . . Repair Stations 1 | . 1 . . . Recycling Units . | . . . . . Scanalyzers 1 | . . . 1 . Garrison Access . | . . . . . Total Hacks 14 | . 2 2 10 . Successful 9 | . 2 1 6 . Failed 5 | . . 1 4 . Catastrophic 1 | . . . 1 . Database Lockouts . | . . . . . Manual . | . . . . . Terminals 10 | . . 2 8 . Fabricators . | . . . . . Repair Stations 2 | . 2 . . . Recycling Units . | . . . . . Scanalyzers 2 | . . . 2 . Garrison Access . | . . . . . Terminal Hacks 5 | . . 1 4 . Record 1 | . . . 1 . Prototype ID Bank 1 | . . . 1 . Dispatch Records 1 | . . . 1 . Assault Status 1 | . . . 1 . Zone Layout 1 | . . 1 . . Fabricator Hacks . | . . . . . Repair Station Hacks 2 | . 2 . . . Scan Component 1 | . 1 . . . Repair 1 | . 1 . . . Recycling Unit Hacks . | . . . . . Scanalyzer 2 | . . . 2 . Insert Component 1 | . . . 1 . Analyze 1 | . . . 1 . Garrison Access Hacks . | . . . . . Unauthorized Hacks . | . . . . . Terminals . | . . . . . Fabricators . | . . . . . Repair Stations . | . . . . . Recycling Units . | . . . . . Scanalyzers . | . . . . . Garrison Access . | . . . . . Data Cores Recovered . | . . . . . Used . | . . . . . Hacking Detections 3 | . 1 1 1 . Full Trace Events 1 | . . . 1 . Feedback Events . | . . . . . Feedback Blocked . | . . . . . Robot Schematics Acquired . | . . . . . Robots Built . | . . . . . Authchips . | . . . . . Time . | . . . . . Total Robot Build Rating . | . . . . . Part Schematics Acquired 1 | . . . 1 . Parts Built . | . . . . . Authchips . | . . . . . Time . | . . . . . Total Part Build Rating . | . . . . . Parts Repaired 1 | . 1 . . . Time 26 | . 26 . . . Parts Recycled . | . . . . . Recycled Matter . | . . . . . Retrieved Matter . | . . . . . Retrieved Components . | . . . . . Parts Scanalyzed 1 | . . . 1 . Part Schematics Acquired 1 | . . . 1 . Parts Damaged . | . . . . . Bothacking | -11 -10 -10 -9 -9 ------------ Run | Yrd Mat Min Mat Sto Used RIF Installer . | . . . . . Robots Hacked . | . . . . . Non-combat . | . . . . . Combat . | . . . . . Robot Hacks Applied . | . . . . . Relay Couplers Released . | . . . . . Fabnet Peak Effective % . | . . . . . Robots Rewired . | . . . . . Allies Hacked . | . . . . . Hacks Repelled . | . . . . . Allies | -11 -10 -10 -9 -9 -------- Run | Yrd Mat Min Mat Sto Total Allies . | . . . . . Largest Group . | . . . . . Highest-Rated Group . | . . . . . Highest-Rated Ally . | . . . . . Total Orders . | . . . . . Ally Attacks . | . . . . . Total Damage . | . . . . . Kills . | . . . . . Allies Corrupted . | . . . . . Allies Melted . | . . . . . Intel | -11 -10 -10 -9 -9 ------- Run | Yrd Mat Min Mat Sto Robot Analysis Total . | . . . . . Derelict Logs Recovered 1 | . . 1 . . Drone Launches . | . . . . . Drone Recoveries . | . . . . . Exploration | -11 -10 -10 -9 -9 ------------- Run | Yrd Mat Min Mat Sto Turns Passed 1487 | 48 509 394 333 203 Spaces Moved 602 | 40 187 156 164 55 Core 18 | 17 . . 1 . Treads . | . . . . . Legs 584 | 23 187 156 163 55 Wheels . | . . . . . Hover . | . . . . . Flight . | . . . . . Fastest Speed 50 | 50 120 190 120 120 Average Speed 201 | 90 246 246 159 120 Slowest Speed 400 | 120 260 260 400 120 Overloaded Moves . | . . . . . Propulsion Burnouts . | . . . . . Robots Hopped . | . . . . . Cave-ins Triggered . | . . . . . Exploration Rate (%) 20 | 3 29 39 21 12 Regions Visited 4 Branch Regions 2 Pre-discovered Areas . | . . . . . Known Exits Taken . | . . . . . Unknown Exits Taken 4 | 1 1 1 1 . Scrap Searched 1 | . . 1 . . Spaces Dug . | . . . . . Terrain Destroyed 27 | . 18 . 9 . Melee . | . . . . . Projectile . | . . . . . AOE 27 | . 18 . 9 . Terrain Rammed . | . . . . . Walls Destroyed . | . . . . . Machines Disabled . | . . . . . Actions | -11 -10 -10 -9 -9 --------- Run | Yrd Mat Min Mat Sto Total 741 | 50 221 163 194 113 Wait 1 | . . . . 1 Move 598 | 39 186 155 163 55 Hop . | . . . . . Pick Up 24 | 5 12 4 3 . Fast Attach 4 | 3 . . 1 . Attach 19 | 3 5 1 4 6 Detach 4 | . 2 1 . 1 Swap 11 | . 4 1 2 4 Drop 1 | . 1 . . . Fire 78 | . 10 1 21 46 Melee . | . . . . . Ram . | . . . . . Kick 1 | . 1 . . . Crush . | . . . . . Escape Stasis . | . . . . . Rewire . | . . . . . Trap . | . . . . . Miscellaneous . | . . . . . Route ------- -11/Scrapyard -10/Materials -10/Mines -9/Materials -9/Storage History --------- Turn | Location | Event 16 | -11/Scrapyard | Discovered new exit (range 15) 49 | -11/Scrapyard | Entered Materials 239 | -10/Materials | Repaired Lgt. Ion Engine 308 | -10/Materials | Build established: Mutant 507 | -10/Materials | Discovered new exit (range 13) 558 | -10/Materials | Entered Mines 649 | -10/Mines | Joined a pair of Derelicts in attacking an 0b10 outpost 748 | -10/Mines | Learned Materials emergency access door positions 886 | -10/Mines | Found a damaged Exp. Sensor Array with a note attached 896 | -10/Mines | Found Prototype Device 898 | -10/Mines | Identified Exp. Sensor Array 910 | -10/Mines | Discovered new exit (range 15) 952 | -10/Mines | Entered Materials 952 | -9/Materials | Evolved 2 slots: Propulsion x2 992 | -9/Materials | Discovered new exit (range 9) 1285 | -9/Materials | Entered Storage 1428 | -9/Storage | Core integrity fell below 50% 1474 | -9/Storage | Core integrity fell below 20% 1488 | -9/Storage | Destroyed by L-31 Rogue with Katana Last Messages --------------- Y-45 Defender destroyed. Critical hit (Burn: +37). Ion Engine destroyed. Hvy. Assault Rifle melted. Y-45 Defender destroyed. Y-45 Defender suffers critical hit (Burn). Y-45 Defender destroyed. Overheating: System interference. Med. Laser temporarily disabled. Med. Laser destroyed. L-31 Rogue suffers critical hit (Burn). Overheating: Energy bleed (-48). Aluminum Leg destroyed. Ion Engine destroyed. Imp. Aluminum Leg destroyed. Lgt. Assault Rifle destroyed. Med. Laser destroyed. Med. Matter Pod destroyed. Overheating: Beam Rifle damaged (-12). Beam Rifle destroyed. Map ----- +----------------------------------------------------+ | ????????????????????????????????????????????? | | ????????????????????????????????????????????? | | ????????????????????????????????????????????? | | ????????????????????????????????????????????? | | ????????????????????????????????????????????? | | ????????????????????????????????????????????? | | ????????????????????????????????????????????? | | ????????????????????????????????????????????? | | ????????????????????????????????????????????? | | ????????????????????????????????????????????? | | ????????????????????? ????????????????????? | | ????????????????????? ???????????????????? | | ????????????????????# #???????????????????? | | ????????????????????# #???????????????????? | | ????????????????????# #???????????????????? | | ????????????????????# #???????????????????? | | ????????????????????+ #???????????????????? | | ????????????????????# #???????????????????? | | ????????????????????# #???????????????????? | | ????????????????????# #???????????????????? | | ????????????????????# #???????????????????? | | ??????????########### #???????????????????? | | ??????????# # #######?????????????? | | ??????????# # # ??????????????? | | ??????????# # #= "???????????????? | | ??????????# # #@ "????????????????? | | ########## + %l%""????????????????? | | / # ==#%"?????????????????? | | ########## # !# "?????????????????? | | ??????????# # # "?????????????????? | | ??????????########### # ?????????????????? | | ???????????????????## ###?????????????????? | | ???????????????????# ###########????????? | | ???????????????????# #????????? | | ???????????????????# #????????? | | ???????????????????# #????????? | | ???????????????????# ###########????????? | | ???????????????????#######??????????????????? | | ????????????????????????????????????????????? | | ????????????????????????????????????????????? | | ????????????????????????????????????????????? | | | | | | | | | | | | | | | | | | | +----------------------------------------------------+ Best States ------------- Heat Dissipation 28 Energy Generation 10 Energy Capacity 250 Matter Stores 300 Matter Capacity 400 Sight Range 16 Robot Scan Range 20 Terrain Scan Density 10 Evasion (%) 55 Item Schematics ----------------- Hvy. Assault Rifle | -9/Materials | Scanalyzed Robot Schematics ------------------ None Fabricated ------------ Nothing Alien Tech Used ----------------- None Achievements -------------- None Challenges ------------ None Game ------ Seed GuidedMetafieldFlail Manual? 0 Play Time 00:17:43 Cumulative 4.9 hours Start 2024.04.21 @ 11:00:29 End 2024.04.21 @ 14:22:51 Sessions 3 Manual Loads 0 Difficulty Rogue Special Mode None Game No. 14 Rogue 14 Adventurer 0 Explorer 0 Win Type - Total 0 Types 0/0/0/0/0/0/0/0/0 Lore% 12 Gallery% 12 Achievement% 11 Wizard Run 0 Options --------- Layout 1 ASCII 0 Keyboard 0 Movement Mouse Keybinds 0 Fullscreen 1 Font 24/Smallcaps Map View 50x35 Zoom Use 0% Tactical HUD 0 Map Filters NONE Filters NONE Steam 1 RUN: 879f60e8-1ebc-4f3c-b1af-f9ebf8e4e013